[Event "85th Tata Steel Challengers 2023"]
[Site "Wijk aan Zee"]
[Date "2023.01.29"]
[Round "13.3"]
[White "Sindarov, Javokhir"]
[Black "Beerdsen, Thomas"]
[Result "1-0"]
[ECO "B11"]
[WhiteElo "2654"]
[BlackElo "2515"]
[Annotator "TA"]
[PlyCount "99"]
[EventDate "2023.01.10"]
[EventType "tourn"]
[EventCountry "NED"]
[SourceTitle "playchess.com"]
[Source "ChessBase"]
[SourceQuality "1"]
[TimeControl "40/6000+30:30/3000+30:900+30"]

{[%evp 12,99,18,0,12,13,8,12,60,12,33,16,29,16,32,24,32,16,33,7,22,13,43,56,54,46,69,59,84,98,175,60,56,51,52,31,28,27,37,0,0,7,30,0,0,8,67,63,60,69,104,118,109,109,97,91,90,99,120,70,141,114,118,115,106,102,89,71,433,243,663,659,598,614,808,977,945,930,1114,1725,1725,1604,1366,1249,29970,5616,5941,5595,29984,29985]} 1. e4 {[%emt 0:00:03]} c6 {[%emt 0:00:05]} 2. Nc3 {[%emt 0:02:03]} d5 {[%emt 0:00:11]} 3. Nf3 {[%emt 0:00:05]} Bg4 {[%emt 0:00:06]} 4. h3 {[%emt 0:00:26]} Bxf3 {[%emt 0:00:08]} 5. Qxf3 {[%emt 0:00:04]} e6 {[%emt 0:00:12]} 6. d3 {[%emt 0:03:04]} Nd7 {[%emt 0:00:36]} 7. Be2 $1 {[%emt 0:02:14][%mdl 4] is recently more successful than 7.Bd2.} Bd6 {[%emt 0:04:44] B11: Caro-Kann: Two Knights Variation.} 8. d4 {[%emt 0:04:24]} Ne7 {[%emt 0:03:06]} 9. O-O {[%emt 0:15:53] [#]} Qb6 $146 {[%emt 0:09:59]} (9... O-O $11 {is more appropriate.}) ({Predecessor:} 9... O-O 10. Bd3 Qb6 11. exd5 cxd5 12. Ne2 e5 13. dxe5 Nxe5 14. Qg3 Nc4 15. Qh4 Ng6 {0-1 Georgiadis,N (2577)-Dragnev,V (2551) AUT-chT 2223 2022 (3.1)}) 10. Qd3 {[%emt 0:05:37]} (10. Rd1 $1 $14) 10... Rd8 {[%emt 0:06:56]} 11. e5 {[%emt 0:10:11]} Bb8 {[%emt 0:01:27]} 12. Na4 {[%emt 0:00:11]} Qa5 {[%emt 0:06:28]} 13. b3 {[%emt 0:00:11]} b5 {[%emt 0:05:36]} 14. Nb2 {[%emt 0:03:00]} O-O {[%emt 0:05:13]} 15. c3 {[%emt 0:35:21]} f6 {[%emt 0:12:59]} 16. f4 {[%emt 0:04:47]} c5 {[%emt 0:05:59][%cal Rf6e5]} 17. Bg4 {[%emt 0:02:26]} (17. Qxb5 Qxc3 18. Bg4 Qxd4+ 19. Kh1 Nxe5 20. Bxe6+ Kh8 $17) 17... Qb6 {[%emt 0:12:30]} 18. Be3 {[%emt 0:00:41]} Kh8 {[%emt 0:05:18]} 19. Qd2 {[%emt 0:06:00] White is much more active.} Nc6 {[%emt 0:06:54]} 20. b4 {[%emt 0:03:51]} (20. Bxe6 $6 fxe5 21. fxe5 cxd4 22. cxd4 Ncxe5 23. Bxd7 (23. dxe5 Qxe6 24. Nd3 Rxf1+ 25. Rxf1 Nxe5 $11) (23. Bxd5 Ng6 $15) 23... Nxd7 $11) 20... Qc7 {[%emt 0:05:33]} (20... cxb4 $16 {was worth a try.} 21. cxb4 (21. Bxe6 bxc3 22. Qxc3 Nxd4 $11) 21... a6) 21. Kh1 {[%emt 0:02:37]} (21. dxc5 fxe5 22. Nd3 (22. Bxe6 d4 $15) 22... e4 $11) (21. Bxe6 cxd4 22. Bxd4 (22. cxd4 fxe5 23. Bxd7 exd4 $11) 22... fxe5 23. Bxd7 (23. fxe5 Ndxe5 24. Rxf8+ Rxf8 $17) 23... Qxd7 24. fxe5 Nxe5 $11) (21. bxc5 $18 {aiming for Nd3.} fxe5 22. fxe5 (22. dxe5 Ndxe5 23. fxe5 h5 $16)) 21... cxd4 $14 {[%emt 0:03:06]} 22. cxd4 {[%emt 0:00:10]} Nb6 {[%emt 0:00:18]} 23. Bg1 {[%emt 0:04:48]} (23. a4 $5 {[%cal Ra4b5]} Nc4 24. Nxc4 bxc4 25. b5 $11 (25. Bxe6 fxe5 26. fxe5 Nxe5 $15)) 23... Nc4 {[%emt 0:02:36]} 24. Qc3 {[%emt 0:00:06]} a5 {[%emt 0:03:19]} 25. bxa5 {[%emt 0:00:56]} (25. Bxe6 axb4 26. Qc2 Ba7 27. Nxc4 bxc4 $17) 25... f5 {[%emt 0:02:19]} 26. Be2 {[%emt 0:00:15]} Ba7 {[%emt 0:00:47]} (26... Qxa5 {simplifies} 27. Qxa5 N6xa5 28. Nd3 Ba7) 27. Nd3 {[%emt 0:00:46]} Rb8 {[%emt 0:01:36]} 28. Rfb1 {[%emt 0:00:45]} Rfc8 {[%emt 0:01:12]} (28... Qxa5 $11 29. Nb4 Rfc8) 29. a6 {[%emt 0:00:50]} Bb6 {[%emt 0:00:41]} 30. Nc5 {[%emt 0:01:42]} (30. Rxb5 Nxd4 31. Rxb6 (31. Bxd4 $2 Bxd4 {[%mdl 64] Discovered Attack} 32. Qxd4 Rxb5 $19) 31... Nxe2 $11) 30... Bxc5 {[%emt 0:01:40]} 31. dxc5 {[%emt 0:00:04]} b4 {[%emt 0:01:16]} 32. Qc1 {[%emt 0:00:21]} N6a5 {[%emt 0:00:15][%cal Bc6a5,Ba5c4,Bc4b2][%mdl 32]} 33. Qe1 {[%emt 0:00:36]} Na3 {[%emt 0:01:31]} 34. Rc1 {[%emt 0:00:02] Prevents Nc2} N5c4 {[%emt 0:00:37] [#]} 35. g4 $1 {[%emt 0:00:14] gxf5 would be deadly.} fxg4 {[%emt 0:00:39]} ({Better is} 35... Qf7 $14) 36. hxg4 {[%emt 0:01:12]} (36. Bxg4 $6 Qc6 $14) 36... Qc6 {[%emt 0:01:13]} 37. Bd3 {[%emt 0:00:22]} (37. a7 $6 Rb7 $11) 37... Nb2 {[%emt 0:01:07] [#]} 38. Bf1 {[%emt 0:00:38]} Nbc4 {[%emt 0:00:25]} 39. Qh4 {[%emt 0:00:15] Threatens to win with Bd3.} b3 $2 {[%emt 0:00:42][%mdl 8192] This move loses the game for Black.} (39... Nd2 $16 {is tougher.}) 40. a7 $40 {[%emt 0:01:23][%mdl 128] Black is in trouble.} (40. Bd3 h6 41. a7 Ra8 42. axb3 d4+ 43. Kh2 Nd2 $16) (40. axb3 $142 Rxb3 41. Ra2) 40... Rb7 $2 {[%emt 0:00:31]} (40... b2 41. axb8=R Rxb8) 41. axb3 $18 {[%emt 0:51:16]} ({But not} 41. Bd3 $2 g5 42. Qh6 (42. fxg5 $2 b2 $19) 42... b2 43. Qf6+ (43. fxg5 $2 Rg7 $19) 43... Rg7 $19) 41... Rxb3 {[%emt 0:03:53]} 42. Ra2 {[%emt 0:00:00] Dodges Nd2. Strongly threatening Rh2.} Rb7 {[%emt 0:07:11] [#]} 43. Rxc4 $1 {[%emt 0:00:00][%mdl 512]} dxc4+ {[%emt 0:00:43]} 44. Bg2 {[%emt 0:00:00]} Qc7 {[%emt 0:02:10]} 45. Be4 {[%emt 0:00:00][%csl Ge4][%cal Rh4h7] Black is weak on the dark squares} g5 {[%emt 0:04:08]} 46. Qxg5 {[%emt 0:00:00]} Rxa7 {[%emt 0:00:09]} 47. c6 {[%emt 0:00:00]} c3 {[%emt 0:01:33]} 48. Bxa7 {[%emt 0:00:00] Qf6+ would kill now. A strong pair of Bishops.} c2 {[%emt 0:00:22]} 49. Qf6+ {[%emt 0:00:00]} (49. Rxa3 $2 {too greedy.} c1=Q+ 50. Kg2 Qxa3 $19) 49... Kg8 {[%emt 0:00:13]} 50. Qxe6+ {[%emt 0:00:00] Excellently played by Sindarov!   Weighted Error Value: White=0.17 (very precise) /Black=0.57} (50. Rxa3 $2 {loses.} c1=Q+ 51. Kh2 Qxa3 $19) 1-0

[Event "85th Tata Steel Challengers 2023"]
[Site "Wijk aan Zee"]
[Date "2023.01.29"]
[Round "13.4"]
[White "Vaishali, Rameshbabu"]
[Black "Tabatabaei, M. Amin"]
[Result "0-1"]
[ECO "B94"]
[WhiteElo "2425"]
[BlackElo "2686"]
[Annotator "TA"]
[PlyCount "79"]
[EventDate "2023.01.10"]
[EventType "tourn"]
[EventCountry "NED"]
[SourceTitle "playchess.com"]
[Source "ChessBase"]
[SourceQuality "1"]
[TimeControl "40/6000+30:30/3000+30:900+30"]

{[%evp 11,79,8,33,15,8,10,8,11,10,10,15,12,6,12,20,16,21,0,1,0,0,1,0,0,0,0,0,0,0,0,8,-13,-9,-46,-34,-56,-58,-55,-58,-58,-8,-58,-58,-134,-136,-134,-140,-140,-136,-141,-133,-194,-193,-206,-204,-187,-188,-236,-229,-324,-300,-249,-154,-560,-560,-678,-654,-29964,-6499,-1875]} 1. e4 {[%emt 0:00:17]} c5 {[%emt 0:02:32]} 2. Nf3 {[%emt 0:00:05]} d6 {[%emt 0:00:10]} 3. d4 {[%emt 0:00:05]} cxd4 {[%emt 0:00:03]} 4. Nxd4 {[%emt 0:00:03]} Nf6 {[%emt 0:00:14]} 5. Nc3 {[%emt 0:00:05]} a6 {[%emt 0:01:18]} 6. Bg5 {[%emt 0:00:06]} Nbd7 {[%emt 0:00:23]} 7. Be3 {[%emt 0:00:05] B94: Sicilian Najdorf: 6 Bg5 Nbd7.} (7. Bc4 {with more complications.} Qa5 8. Qd2 e6 9. f3) 7... Qc7 {[%emt 0:00:32]} 8. g4 {[%emt 0:00:05] g5 would be deadly.} h6 {[%emt 0:00:45]} 9. a4 {[%emt 0:00:05] [#] The position is equal.} Ne5 $146 {[%emt 0:00:39]} ({Predecessor:} 9... b6 10. Bg2 Bb7 11. h4 Ne5 12. g5 hxg5 13. hxg5 Rxh1+ 14. Bxh1 Nfd7 15. Nd5 Bxd5 16. exd5 {1-0 Kochavi,O (2356)-Leib,Y (1673) Ramat Gan Shavuot Rapid 2022 (5)}) 10. h3 {[%emt 0:00:11]} Bd7 {[%emt 0:00:47]} 11. f4 {[%emt 0:00:41]} Nc4 {[%emt 0:00:41]} 12. Bxc4 {[%emt 0:00:13]} Qxc4 {[%emt 0:00:06]} 13. Qd3 {[%emt 0:00:15]} Rc8 {[%emt 0:00:41][%cal Og7g5]} (13... Qxd3 {simplifies} 14. cxd3 e6 15. Kf2 Be7) 14. e5 {[%emt 0:00:47]} Qxd3 {[%emt 0:05:22]} 15. cxd3 {[%emt 0:00:03]} dxe5 {[%emt 0:00:15]} 16. fxe5 {[%emt 0:00:06]} Nh7 {[%emt 0:00:11]} 17. Ke2 {[%emt 0:00:41]} e6 {[%emt 0:09:58] Prevents Nd5} 18. Rac1 {[%emt 0:06:18]} Be7 {[%emt 0:01:11]} 19. Ne4 {[%emt 0:16:17]} O-O {[%emt 0:01:11]} 20. a5 {[%emt 0:00:52]} f5 {[%emt 0:06:28]} 21. exf6 {[%emt 0:10:43]} Nxf6 {[%emt 0:00:20]} 22. Nxf6+ {[%emt 0:00:11]} Bxf6 {[%emt 0:00:23]} 23. b4 {[%emt 0:01:19]} Rcd8 {[%emt 0:15:48]} 24. Nb3 {[%emt 0:25:08]} Bb5 {[%emt 0:03:40]} 25. Nc5 {[%emt 0:00:52][%csl LRb7,LRe6]} e5 {[%emt 0:06:49]} (25... Be7 $15) 26. Rhd1 {[%emt 0:02:42]} ({White should play} 26. g5 $1 $11 hxg5 27. Ne6) 26... Be7 $15 {[%emt 0:01:11] This pair of bishops is nice.} 27. Nxb7 {[%emt 0:07:36] [#]} (27. Ne6 $1 $15) 27... Rxd3 $1 $17 {[%emt 0:02:41][%mdl 512]} 28. Rxd3 {[%emt 0:00:10][%cal Oe2d2]} e4 $36 {[%emt 0:00:05][%cal Be5e4,Be4d3][%mdl 2144] Pin. Black is really pushing.} 29. Nc5 {[%emt 0:01:27][%cal Oc5e4] And now Nxe4! would win.} exd3+ {[%emt 0:00:11]} 30. Kd2 {[%emt 0:00:07]} Rf3 {[%emt 0:01:19][%cal Of3e3] ...Rxe3! is the strong threat.} 31. Rh1 {[%emt 0:10:20] [#]} (31. Nxd3 $17 Bg5 32. Re1 (32. Rc8+ $2 Kh7 $19)) 31... Rg3 $1 $19 {[%emt 0:05:16] White must now prevent ...Rg2+.} 32. Rh2 {[%emt 0:13:02] [#] Repels Rg2+} Bd6 $1 {[%emt 0:03:39][%cal Og3e3]} 33. Rf2 {[%emt 0:02:58]} Rxh3 {[%emt 0:01:46]} 34. Nxd3 {[%emt 0:00:52]} (34. Bf4 $142 Be7 35. Rg2) 34... Rg3 {[%emt 0:02:27]} 35. g5 {[%emt 0:05:54]} (35. Rf5 $142 Rxg4 36. Bc5 Bxc5 37. Nxc5) 35... h5 {[%emt 0:03:24][%cal Bh6h5,Bh5h4,Bh4h3,Bh3h2][%mdl 32] Hoping for ...h4.} (35... hxg5 $2 {loses.} 36. Rf5 $19) 36. Nc5 {[%emt 0:02:10]} Be7 {[%emt 0:03:56]} 37. Rf5 $2 {[%emt 0:02:21] White does not recover from this.} (37. Rh2 $17 {is more resistant.}) 37... h4 {[%emt 0:00:20]} 38. Re5 {[%emt 0:02:29] [#]} h3 $1 {[%emt 0:12:00] Strongly threatening ...h2.} 39. Rxe7 {[%emt 0:01:34]} (39. Re4 Rxe3) 39... h2 {[%emt 0:00:06]} 40. Bd4 {[%emt 0:00:21] Weighted Error Value: White=0.58/Black=0.06 (flawless)} 0-1

[Event "85th Tata Steel Challengers 2023"]
[Site "Wijk aan Zee"]
[Date "2023.01.29"]
[Round "13.5"]
[White "Adhiban, B.."]
[Black "Warmerdam, Max"]
[Result "0-1"]
[ECO "B13"]
[WhiteElo "2610"]
[BlackElo "2616"]
[Annotator "TA"]
[PlyCount "104"]
[EventDate "2023.01.10"]
[EventType "tourn"]
[EventCountry "NED"]
[SourceTitle "playchess.com"]
[Source "ChessBase"]
[SourceQuality "1"]
[TimeControl "40/6000+30:30/3000+30:900+30"]

{[%evp 13,104,0,6,0,0,0,20,18,18,21,27,18,24,12,23,9,27,11,8,7,9,3,12,0,0,0,0,0,0,0,0,0,0,0,0,0,0,0,0,0,0,0,0,0,219,223,222,219,205,224,200,206,211,202,197,0,0,0,0,-7,0,0,0,0,0,0,0,0,0,0,0,0,0,0,0,0,0,0,0,0,0,0,0,0,0,0,0,-29992,-29993,-29994,-29995,-29995,-29996]} 1. c4 {[%emt 0:00:05]} c6 {[%emt 0:00:07]} 2. e4 {[%emt 0:06:34]} d5 {[%emt 0:00:07]} 3. exd5 {[%emt 0:00:05]} cxd5 {[%emt 0:00:18]} 4. d4 {[%emt 0:03:28]} Nf6 {[%emt 0:00:07]} 5. Nc3 {[%emt 0:00:05]} Nc6 {[%emt 0:00:27]} 6. Nf3 {[%emt 0:00:04]} a6 {[%emt 0:00:21]} 7. cxd5 {[%emt 0:10:21] 7.cxd5 scores better than 7.Bg5.} Nxd5 {[%emt 0:00:37]} 8. Bc4 {[%emt 0:00:07] B13: Caro-Kann: Exchange Variation and Panov-Botvinnik Attack.} Be6 {[%emt 0:00:44]} 9. Bb3 {[%emt 0:00:10]} Nxc3 {[%emt 0:00:45]} 10. bxc3 {[%emt 0:00:10] The position is equal.} Bxb3 {[%emt 0:00:06]} 11. axb3 {[%emt 0:09:24] Threatens to win with d5.} e6 {[%emt 0:00:54]} 12. O-O {[%emt 0:00:37]} Be7 {[%emt 0:00:15]} 13. c4 {[%emt 0:02:48] [#]} O-O $146 {[%emt 0:02:01]} ({Predecessor:} 13... Bf6 14. Be3 O-O 15. Qd2 Qe7 16. Rad1 Rfd8 17. d5 exd5 18. cxd5 Qa3 19. Bb6 Rd7 {½-½ Kornev,A (2558)-Kurenkov,N (2393) RUS-ch sf Tula 2003 (2)}) 14. Be3 {[%emt 0:00:27]} Qc7 {[%emt 0:03:18]} 15. Qe2 {[%emt 0:02:18]} Rfd8 {[%emt 0:04:39]} 16. Rfd1 {[%emt 0:02:15]} Bf6 {[%emt 0:12:51]} 17. Rac1 {[%emt 0:00:28]} Qa5 {[%emt 0:05:13]} 18. g4 {[%emt 0:14:48]} Rd7 {[%emt 0:02:21]} 19. Rd3 {[%emt 0:01:39]} Rad8 {[%emt 0:03:48][%cal Oh7h5]} 20. Rcd1 {[%emt 0:00:06]} b5 {[%emt 0:05:20]} 21. h3 {[%emt 0:03:15]} h6 {[%emt 0:04:08]} 22. h4 {[%emt 0:06:18]} bxc4 {[%emt 0:02:49]} 23. bxc4 {[%emt 0:00:05]} h5 {[%emt 0:00:06]} 24. g5 {[%emt 0:05:22]} Be7 {[%emt 0:00:23]} 25. g6 {[%emt 0:15:15]} fxg6 {[%emt 0:12:10]} 26. d5 {[%emt 0:00:15]} exd5 {[%emt 0:00:05]} 27. Bg5 {[%emt 0:09:42] Qe6+ would be deadly.} Kh8 {[%emt 0:05:04]} 28. Re3 $36 {[%emt 0:01:51][%cal Rg5e7][%mdl 2048] White has some pressure.} d4 $2 {[%emt 0:16:01]} (28... Qa4 $11 {and Black has nothing to worry.}) 29. Rxe7 $18 {[%emt 0:01:14]} Rxe7 {[%emt 0:04:59]} 30. Bxe7 {[%emt 0:00:05]} Re8 {[%emt 0:00:04] [#]} 31. Qe6 {[%emt 0:02:05]} Nxe7 {[%emt 0:01:29]} (31... Rxe7 32. Qxc6 Qd8 33. Rxd4 $18) 32. Qf7 {[%emt 0:01:01]} Qd8 {[%emt 0:04:29]} 33. Rxd4 {[%emt 0:02:06]} Qc8 {[%emt 0:00:04]} 34. Ng5 $2 {[%emt 0:04:09]} ({Only move:} 34. Ne5 $1 $18 {Strongly threatening Rd7.} Kh7 35. Rd7) 34... Nf5 $11 {[%emt 0:03:41]} 35. Rf4 {[%emt 0:08:35]} Re1+ {[%emt 0:05:01]} 36. Kh2 {[%emt 0:00:09]} Qa8 {[%emt 0:04:06][%csl Ge1][%cal Ra8h1]} (36... Qb8 {is more complex.} 37. Kg2 Qa8+ 38. Qd5 Qxd5+ 39. cxd5 Kg8) 37. Qd5 {[%emt 0:00:21] Dodges Qh1+} Qxd5 {[%emt 0:06:33]} (37... Qb8 {keeps more tension.} 38. Kg2 a5 39. Qxa5 Re8) 38. cxd5 {[%emt 0:00:04][%cal Od5d6][%mdl 4096] Endgame aiming for d6! KRN-KRN} Kg8 {[%emt 0:00:04]} 39. Ra4 {[%emt 0:00:40]} Kf8 {[%emt 0:00:32]} 40. Ne6+ {[%emt 0:00:58]} Ke7 {[%emt 0:00:50]} 41. Rxa6 {[%emt 0:20:36]} Re4 {[%emt 0:02:55]} 42. f4 {[%emt 0:02:02]} Re2+ {[%emt 0:00:55]} 43. Kh3 {[%emt 0:00:41]} Re3+ {[%emt 0:00:09]} 44. Kh2 {[%emt 0:00:13]} Rd3 {[%emt 0:13:47]} 45. Ra7+ {[%emt 0:02:54]} Kf6 {[%emt 0:01:01]} 46. Ra6 {[%emt 0:05:45] Hoping for Nc5+.} Rd2+ {[%emt 0:00:28]} (46... Rxd5 47. Nc7+ Rd6 48. Ne8+ Ke6 49. Nxd6 Nxd6 50. Kh3 $16) 47. Kh3 {[%emt 0:00:05]} Ne3 {[%emt 0:05:21]} ({Don't do} 47... Rxd5 48. Nc7+ Rd6 49. Ne8+ Ke6 50. Nxd6 Nxd6 51. Kg3 $16) 48. Nd4+ {[%emt 0:02:04]} Kf7 {[%emt 0:01:11]} 49. Ra7+ {[%emt 0:07:37]} Ke8 {[%emt 0:01:33]} 50. Ne6 {[%emt 0:02:20][%mdl 8192]} (50. Nf3 $11 Rxd5 51. Rxg7) 50... Nf1 $1 {[%emt 0:01:19][%csl Gf1][%cal Rd2h2] Black mates.} ({Worse is} 50... Nxd5 51. Nxg7+ Kd8 52. f5 gxf5 53. Nxf5 $11) 51. Nxg7+ {[%emt 0:06:00] [#]} Kd8 $1 {[%emt 0:00:06][%csl Gf1][%cal Rd2h2]} 52. Ne6+ {[%emt 0:00:19] [#]} Kc8 $1 {[%emt 0:00:05] Quite a comeback for Black.   Weighted Error Value: White=0.21 (precise) /Black=0.09 (flawless)} 0-1

[Event "85th Tata Steel Challengers 2023"]
[Site "Wijk aan Zee"]
[Date "2023.01.29"]
[Round "13.6"]
[White "Pechac, Jergus"]
[Black "L'Ami, Erwin"]
[Result "0-1"]
[ECO "C93"]
[WhiteElo "2637"]
[BlackElo "2627"]
[Annotator "TA"]
[PlyCount "98"]
[EventDate "2023.01.10"]
[EventType "tourn"]
[EventCountry "NED"]
[SourceTitle "playchess.com"]
[Source "ChessBase"]
[SourceQuality "1"]
[TimeControl "40/6000+30:30/3000+30:900+30"]

{[%evp 32,97,29,0,0,0,0,0,25,6,0,0,40,39,33,29,30,37,54,32,58,46,35,0,0,-96,0,-17,-15,-50,-43,-55,-49,-42,-24,-40,-20,-102,-16,-102,-36,-43,-39,-27,64,-24,-10,-98,0,-9,-8,0,0,-125,-106,-130,-104,-486,-460,-754,-686,-840,-834,-717,-684,-29985,-29975,-29999]} 1. e4 {[%emt 0:00:04]} e5 {[%emt 0:00:08]} 2. Nf3 {[%emt 0:01:09]} Nc6 {[%emt 0:00:09]} 3. Bb5 {[%emt 0:00:07][%cal Bf1b5,Bb5a4,Ba4b3][%mdl 32]} a6 {[%emt 0:00:16]} 4. Ba4 {[%emt 0:00:07]} Nf6 {[%emt 0:00:09]} 5. O-O {[%emt 0:00:08]} Be7 {[%emt 0:00:05]} 6. Re1 {[%emt 0:00:17]} b5 {[%emt 0:00:20]} 7. Bb3 {[%emt 0:00:05]} d6 {[%emt 0:00:08]} 8. c3 {[%emt 0:00:15]} O-O {[%emt 0:00:08]} 9. h3 {[%emt 0:00:04]} Re8 {[%emt 0:00:08]} 10. Ng5 {[%emt 0:00:35]} Rf8 {[%emt 0:00:08]} 11. Nf3 {[%emt 0:00:04]} Re8 {[%emt 0:00:31]} 12. d4 {[%emt 0:00:06]} Bb7 {[%emt 0:02:11]} 13. Nbd2 {[%emt 0:02:04]} Bf8 {[%emt 0:02:08]} 14. a4 {[%emt 0:00:48]} h6 {[%emt 0:09:30]} 15. Bc2 {[%emt 0:00:23]} Nb8 {[%emt 0:05:09]} 16. b3 {[%emt 0:03:25] 16.b4 is the modern continuation.} Nbd7 {[%emt 0:01:21]} 17. d5 {[%emt 0:03:27]} c6 {[%emt 0:10:07] C93: Closed Ruy Lopez: Smyslov Variation.} 18. c4 {[%emt 0:00:13]} Qc7 {[%emt 0:01:28]} 19. Ba3 {[%emt 0:03:28] [#]} Reb8 $146 {[%emt 0:07:09] The position is equal.} ({Predecessor:} 19... Rec8 20. Rc1 Qb6 21. Qe2 Rc7 22. b4 Rac8 23. a5 Qa7 24. cxb5 axb5 25. dxc6 Bxc6 26. Bb3 Qb7 27. Qd3 d5 28. exd5 Bxd5 29. Rxc7 Rxc7 30. Bxd5 Nxd5 31. Nxe5 {0-1 Karmenov,B (2120)-Nukin,A (2338) Pavlodar op 2010 (6)}) 20. Bd3 {[%emt 0:04:10]} bxa4 {[%emt 0:05:09]} 21. bxa4 {[%emt 0:02:40]} Nc5 {[%emt 0:01:52]} 22. Bxc5 {[%emt 0:02:26]} dxc5 {[%emt 0:00:09]} 23. Nf1 {[%emt 0:00:19]} a5 {[%emt 0:08:12]} 24. Ne3 {[%emt 0:02:35]} Bd6 {[%emt 0:01:56]} 25. Qc2 {[%emt 0:02:34]} Bc8 {[%emt 0:02:33]} 26. Qc3 {[%emt 0:00:15]} Bd7 {[%emt 0:03:07]} 27. Bc2 {[%emt 0:05:08]} Rb4 {[%emt 0:03:21]} 28. Qd3 {[%emt 0:02:51]} (28. Nd2 $11) 28... Re8 {[%emt 0:01:35]} ({Black should try} 28... cxd5 $1 $17 29. Nxd5 Nxd5 30. exd5 f5) 29. g4 {[%emt 0:02:47]} g6 {[%emt 0:07:50]} 30. Kh1 {[%emt 0:02:43]} cxd5 {[%emt 0:09:56]} 31. Nxd5 {[%emt 0:00:10]} Nxd5 {[%emt 0:00:08]} 32. exd5 {[%emt 0:00:07]} Qd8 {[%emt 0:03:00]} 33. Re4 {[%emt 0:01:43]} Qf6 {[%emt 0:03:11]} 34. Ra3 {[%emt 0:07:55]} (34. Qc3 $11) 34... Kg7 {[%emt 0:03:13] Black is more active.} (34... Qh8 $1 $17 35. Qc3 f5 36. gxf5 gxf5) 35. Kg2 {[%emt 0:00:43]} (35. Qc3 $11 {keeps the balance.}) 35... h5 {[%emt 0:05:24]} (35... Qe7 $17 {...f5 would be deadly.} 36. Re3 h5 37. gxh5 Bf5) 36. Qc3 $1 $15 {[%emt 0:01:21]} hxg4 {[%emt 0:03:48]} (36... Bb8 {with more complications.} 37. Ra1 hxg4 38. hxg4 Rh8) 37. hxg4 {[%emt 0:00:07]} Kf8 {[%emt 0:10:20]} ({Black should play} 37... Rh8 $11) 38. Qa1 {[%emt 0:00:56]} (38. g5 $1 $14 Qg7 39. Ra1) 38... Qg7 $11 {[%emt 0:00:43]} 39. Ng5 {[%emt 0:13:58]} (39. Rae3 $11) 39... f6 {[%emt 0:01:33]} (39... Be7 $17 40. Qc1 f5) 40. Ne6+ {[%emt 0:00:41]} Rxe6 {[%emt 0:01:19][%mdl 64] Deflection} (40... Bxe6 $6 41. dxe6 Rxe6 42. Rg3 $15) 41. dxe6 {[%emt 0:50:08]} Bc6 $36 {[%emt 0:02:41][%cal Ob4c4][%mdl 2048] Black is pushing.} 42. f3 {[%emt 0:00:00]} f5 $1 $17 {[%emt 0:16:49]} 43. Qd1 {[%emt 0:00:00] [#]} Be7 {[%emt 0:05:57]} 44. Re1 {[%emt 0:00:00][%mdl 8192] Now White is beyond hope.} (44. Re2 $17) 44... Rxc4 $19 {[%emt 0:01:23]} 45. g5 {[%emt 0:00:00]} (45. Rh1 $142 Rxg4+ 46. Kf1) 45... Qh8 {[%emt 0:03:35] ( -> ...Rg4+)} (45... Bxg5 46. Qd6+ Qe7 47. Qxc6 $15) 46. Rh1 {[%emt 0:00:00] [#]} Rg4+ $1 {[%emt 0:00:38]} ({Worse is} 46... Rh4 47. Qe1 Rxh1 48. Qxh1 Qxh1+ 49. Kxh1 $17) 47. Kf2 {[%emt 0:00:00]} Rh4 {[%emt 0:00:05]} 48. Ra1 {[%emt 0:00:00]} Rh2+ {[%emt 0:03:45]} ({Not} 48... Bxg5 49. Qd6+ Be7 50. Qb8+ (50. Qxc6 $2 {loses.} Rxh1 51. Qa8+ Kg7 $19) 50... Be8 51. Kg2 $15) 49. Kg3 {[%emt 0:00:00]} Qh4# {[%emt 0:00:07] Artfully played by L'Ami.   Weighted Error Value: White=0.92/Black=0.20 (precise)} 0-1